bitfinex-derivatives/quotes_BNBF0:USTF0_20250303
["timestamp","ask_amount","ask_price","bid_price","bid_amount"]
[1741035124343,2.5627116,575.18,573.77,4.531]
[1741035124545,2.5627116,575.17,573.77,4.531]
[1741035124747,2.5627116,575.16,573.77,4.531]
[1741035124948,1.27427585,575.11,573.77,4.531]
[1741035125142,1.67598167,575.1,573.77,4.531]
[1741035125545,1.27427585,575.11,573.77,4.531]
[1741035125740,1.67598167,575.1,573.77,4.531]
[1741035126048,2.5627116,575.1,573.77,4.531]
[1741035126343,2.5627116,575.09,573.77,4.531]
[1741035126547,2.5627116,575.08,573.77,4.531]
[1741035126748,2.5627116,575.07,573.77,4.531]
[1741035126946,2.5627116,575.06,573.77,4.531]
[1741035127142,2.5627116,575.05,573.77,4.531]
[1741035127346,2.5627116,575.04,573.77,4.531]
[1741035127546,2.5627116,575.03,573.77,4.531]
[1741035127748,2.5627116,575.02,573.77,4.531]
[1741035127951,2.5627116,575.01,573.77,4.531]
[1741035128148,2.5627116,575.0,573.77,4.531]
[1741035128350,2.5627116,574.99,573.77,4.531]
[1741035128547,2.5627116,574.98,573.77,4.531]
[1741035128750,2.5627116,574.97,573.77,4.531]
[1741035128950,2.5627116,574.96,573.77,4.531]
[1741035129150,2.5627116,574.95,573.77,4.531]
[1741035129353,2.5627116,574.94,573.77,4.531]
[1741035129549,2.5627116,574.93,573.77,4.531]
[1741035129752,2.5627116,574.92,573.77,1.175]
[1741035129952,2.5627116,574.91,573.77,1.175]
[1741035130148,2.5627116,574.9,573.77,1.175]
[1741035130349,2.55516425,574.89,573.77,1.175]
[1741035130547,2.55516425,574.88,573.77,1.175]
[1741035130754,2.55516425,574.87,573.77,1.175]
[1741035130953,2.55516425,574.86,573.77,1.175]
[1741035131148,2.55516425,574.85,573.77,1.175]
[1741035131352,2.55516425,574.84,573.77,1.175]
[1741035131652,1.27427585,574.53,573.77,1.175]
[1741035132750,0.34811668,574.52,573.77,1.175]
[1741035135257,1.82009161,574.51,573.77,1.175]
[1741035135461,0.3481288,574.5,573.77,1.175]
[1741035140268,1.81930661,574.49,573.77,1.175]
[1741035140867,0.3481288,574.5,573.77,1.175]
[1741035148279,1.81926698,574.49,573.77,1.175]
[1741035148675,0.34814092,574.48,573.77,1.175]
[1741035152082,0.34814092,574.48,573.77,2.715]
[1741035154080,0.34814092,574.48,573.77,4.34]
[1741035187605,1.81993297,574.47,573.77,4.34]
[1741035187811,0.34815304,574.46,573.77,4.34]
[1741035189110,1.82039311,574.45,573.77,4.34]
[1741035189314,0.34816516,574.44,573.77,4.34]
[1741035192112,1.82032963,574.43,573.77,4.34]
[1741035192312,0.34817729,574.42,573.77,4.34]
[1741035195424,1.82066296,574.41,573.77,4.34]
[1741035195625,0.34818941,574.4,573.77,4.34]
[1741035196426,0.34818941,574.4,573.77,1.175]
[1741035198427,1.82071058,574.39,573.77,1.175]
[1741035198726,0.34820153,574.38,573.77,1.175]
[1741035201128,1.82090112,574.37,573.77,1.175]
[1741035202930,0.34821366,574.36,573.77,1.175]
[1741035207131,1.82058358,574.35,573.77,1.175]
[1741035207429,0.34822578,574.34,573.77,1.175]
[1741035210230,1.81984573,574.33,573.77,1.175]
[1741035211435,0.34823791,574.32,573.77,1.175]
[1741035213235,1.82050421,574.31,573.77,1.175]
[1741035213433,0.34825004,574.3,573.77,1.175]
[1741035222940,0.34825004,574.3,573.77,2.77]
[1741035226745,0.34825004,574.3,573.77,4.172]
[1741035294405,0.34825004,574.3,573.78,0.32031397]
[1741035295004,0.34825004,574.3,573.79,0.32031397]
[1741035295203,0.34825004,574.3,573.58,1.81801559]
[1741035295403,0.34825004,574.3,573.59,0.32030966]
[1741035296800,0.34825004,574.3,573.58,1.81801559]
[1741035297001,0.34825004,574.3,573.59,0.32028347]
[1741035297799,0.34825004,574.3,573.6,2.755]
[1741035298002,0.34825004,574.3,573.61,0.32028347]
[1741035302399,0.34825004,574.3,573.6,2.755]
[1741035306705,0.34825004,574.3,573.61,0.32044122]
[1741035307611,0.34825004,574.3,573.6,2.755]
[1741035307811,0.34825004,574.3,573.62,0.32040979]
[1741035308011,0.34825004,574.3,573.61,0.32040979]
[1741035308312,0.34825004,574.3,573.62,0.3204097]
[1741035308504,0.34825004,574.3,573.63,0.3204097]
[1741035308709,0.34825004,574.3,573.64,0.3204097]
[1741035308909,0.34825004,574.3,573.65,0.3204097]
[1741035309309,0.34825004,574.3,573.66,0.3204097]
[1741035309611,0.34825004,574.3,573.6,2.755]
[1741035309814,0.34825004,574.3,573.61,0.32039296]
[1741035310207,0.34825004,574.3,573.6,2.755]
[1741035310711,0.34825004,574.3,573.61,0.32040651]
[1741035311808,0.34825004,574.3,573.6,2.755]
[1741035312012,0.34825004,574.3,573.62,1.271]
[1741035320037,0.34825004,574.3,573.63,0.107]
[1741035327940,0.34825004,574.3,573.64,0.32038969]
[1741035328139,0.34825004,574.3,573.64,2.02238969]
[1741035328335,0.34825004,574.3,573.65,0.32038969]
[1741035331137,0.34825004,574.3,573.65,1.98538969]
[1741035331339,0.34825004,574.3,573.66,0.32038969]
[1741035331738,0.34825004,574.3,573.67,0.32025647]
[1741035331938,0.34825004,574.3,573.66,0.32025647]
[1741035332138,0.34825004,574.3,573.67,0.32025647]
[1741035332339,0.34825004,574.3,573.68,0.32025647]
[1741035332541,0.34825004,574.3,573.69,0.32025647]
[1741035332744,0.34825004,574.3,573.7,0.32025647]
[1741035332943,0.34825004,574.3,573.66,0.32025647]
[1741035333142,0.34825004,574.3,573.67,0.32025647]
[1741035333342,0.34825004,574.3,573.66,0.32025647]
[1741035333641,0.34825004,574.3,573.67,0.32025647]
[1741035333843,0.34825004,574.3,573.66,0.32025647]
[1741035334047,0.34825004,574.3,573.67,0.32025647]
[1741035334244,0.34825004,574.3,573.66,0.32025647]
[1741035334441,0.34825004,574.3,573.67,0.32025647]
[1741035334645,0.34825004,574.3,573.68,0.32025647]
[1741035334841,0.34825004,574.3,573.66,0.32025647]
[1741035335045,0.34825004,574.3,573.65,4.37446121]
[1741035335046,0.34825004,574.3,573.67,0.32025647]
[1741035335345,0.34825004,574.3,573.68,0.32025647]
[1741035335545,0.34825004,574.3,573.66,0.32025647]
[1741035335740,0.34825004,574.3,573.67,0.32025647]
[1741035335945,0.34825004,574.3,573.68,0.32025647]
[1741035336140,0.34825004,574.3,573.66,0.32025647]
[1741035336446,0.34825004,574.3,573.65,4.37446121]
[1741035336639,0.34825004,574.3,573.66,0.32019324]
[1741035337242,1.27427585,575.4,573.66,0.32019324]
[1741035337447,0.34759637,575.38,573.66,0.32019324]
[1741035338148,0.34759637,575.38,573.67,0.32017051]
[1741035338348,0.34759637,575.38,573.68,0.32017051]
[1741035338544,0.34759637,575.38,573.66,0.32017051]
[1741035338745,0.34759637,575.38,573.67,0.32017051]
[1741035338942,0.34759637,575.38,573.68,0.32017051]
[1741035339141,1.81796019,575.37,573.66,0.32017051]
[1741035339346,0.34761449,575.35,573.67,0.31284206]
[1741035339645,0.34761449,575.35,573.92,1.29429039]
[1741035340449,0.34761449,575.35,573.93,0.32011184]
[1741035342552,0.34761449,575.35,573.92,1.29429039]
[1741035342950,0.34761449,575.35,573.91,1.29429039]
[1741035343751,0.34761449,575.35,573.92,0.32017788]
[1741035345249,1.81727982,575.34,573.92,0.32017788]
[1741035345449,0.34763262,575.32,573.92,0.32017788]
[1741035346556,0.34763262,575.32,573.93,0.32017788]
[1741035346753,0.34763262,575.32,573.94,0.32017788]
[1741035346945,0.34763262,575.32,573.74,2.70157148]
[1741035346946,0.34763262,575.32,573.95,0.32017788]
[1741035347147,0.34763262,575.32,573.74,2.70157148]
[1741035347350,0.34763262,575.32,573.75,0.32008651]
[1741035347550,0.34763262,575.32,573.74,0.32008651]
[1741035347751,0.34763262,575.32,573.76,0.32008651]
[1741035347945,0.34763262,575.32,573.77,0.32008651]
[1741035348152,0.34763262,575.32,573.78,0.32008651]
[1741035348353,0.34763262,575.32,573.77,1.757]
[1741035348553,0.34763262,575.32,573.78,0.32008651]
[1741035349248,0.34763262,575.32,573.79,0.32001826]
[1741035349447,0.34763262,575.32,573.8,0.32001826]
[1741035349648,0.34763262,575.32,573.81,0.32001826]
[1741035349847,0.34763262,575.32,573.82,0.32001826]
[1741035350152,0.34763262,575.32,573.83,0.32001826]
[1741035350347,0.34763262,575.32,573.84,0.32001826]
[1741035350547,0.34763262,575.32,573.78,0.32001826]
[1741035350747,0.34763262,575.32,573.78,0.34856565]
[1741035350951,0.34763262,575.32,573.79,0.32001537]
[1741035351150,0.34763262,575.32,573.79,0.42701537]
[1741035351351,0.34763262,575.32,573.8,0.32001537]
[1741035355150,0.34763262,575.32,573.8,2.00001537]
[1741035355356,0.34763262,575.32,573.81,0.32001537]
[1741035355749,0.34763262,575.32,573.82,0.32001537]
[1741035355954,0.34763262,575.32,573.83,0.32001537]
[1741035356255,0.34763262,575.32,573.84,0.66854457]
[1741035356556,0.34763262,575.32,573.85,0.6685385]
[1741035356858,0.34763262,575.32,573.86,0.66853242]
[1741035357057,0.34763262,575.32,573.87,0.66852635]
[1741035357256,0.34763262,575.32,573.88,0.66852028]
[1741035357448,0.34763262,575.32,573.89,0.66851421]
[1741035357650,0.34763262,575.32,573.9,0.66850813]
[1741035357858,0.34763262,575.32,573.91,0.66850206]
[1741035358051,0.34763262,575.32,573.92,0.66849599]
[1741035358250,0.34763262,575.32,573.93,0.66848992]
[1741035358451,0.34763262,575.32,573.94,0.66848385]
[1741035358655,0.34763262,575.32,573.95,0.32001537]
[1741035358852,0.34763262,575.32,573.96,0.32001537]
[1741035359152,0.34763262,575.32,573.97,0.32001537]
[1741035359353,0.34763262,575.32,573.98,0.32001537]
[1741035359558,0.34763262,575.32,573.99,0.32001537]
[1741035359758,0.34763262,575.32,574.0,0.32001537]
[1741035359954,0.34763262,575.32,574.01,0.32001537]
[1741035360156,0.34763262,575.32,574.02,0.32001537]
[1741035360353,0.34763262,575.32,574.03,0.32001537]
[1741035360553,0.34763262,575.32,574.04,0.32001537]
[1741035360756,0.34763262,575.32,573.95,0.32001537]
[1741035360956,0.34763262,575.32,573.96,0.32001537]
[1741035361154,0.34763262,575.32,573.95,0.32001537]
[1741035361353,0.34763262,575.32,573.97,0.32001537]
[1741035361559,0.34763262,575.32,573.98,0.32001537]
[1741035361758,0.34763262,575.32,573.95,0.32001537]
[1741035361959,0.34763262,575.32,573.96,0.32001537]
[1741035362151,0.34763262,575.32,573.97,0.32001537]
[1741035362354,0.34763262,575.32,573.95,0.32001537]
[1741035362554,0.34763262,575.32,573.96,0.32001537]
[1741035362754,0.34763262,575.32,573.95,0.32001537]
[1741035362958,0.34763262,575.32,573.96,0.32001537]
[1741035363163,0.34763262,575.32,573.97,0.32001537]
[1741035363462,0.34763262,575.32,573.98,0.32001537]
[1741035363659,0.34763262,575.32,573.95,0.32001537]
[1741035364755,0.34763262,575.32,573.96,1.888]
[1741035364955,0.34763262,575.32,573.97,0.32001537]
[1741035366162,0.34763262,575.32,573.98,0.32009848]
[1741035366359,0.34763262,575.32,573.97,0.32009848]
[1741035366864,0.34763262,575.32,573.96,1.888]
[1741035367165,0.34763262,575.32,573.97,0.32014367]
[1741035369264,0.34763262,575.32,573.98,1.152]
[1741035369463,0.34763262,575.32,573.99,0.32014367]
[1741035370362,0.34763262,575.32,574.0,0.107]
[1741035370562,0.34763262,575.32,574.01,0.32014367]
[1741035371360,0.34763262,575.32,574.02,1.29429039]
[1741035371559,0.34763262,575.32,574.03,0.32014367]
[1741035374059,0.34763262,575.32,574.03,1.61314367]
[1741035374261,0.34763262,575.32,574.04,0.32014367]
[1741035374562,0.34763262,575.32,574.08,1.29429039]
[1741035374767,0.34763262,575.32,574.09,0.32014367]
[1741035377560,0.34763262,575.32,574.1,1.29429039]
[1741035377760,0.34763262,575.32,574.11,0.32014367]
[1741035378768,0.34763262,575.32,574.12,0.32014367]
[1741035379067,0.34763262,575.32,574.13,0.32014367]
[1741035379263,0.34763262,575.32,574.11,0.32014367]
[1741035379467,0.34763262,575.32,574.12,0.32014367]
[1741035379664,0.34763262,575.32,574.11,0.32014367]
[1741035379867,0.34763262,575.32,574.12,0.32014367]
[1741035380067,0.34763262,575.32,574.13,0.32014367]
[1741035380266,0.34763262,575.32,574.14,0.32014367]
[1741035380669,0.34763262,575.32,574.15,0.32014367]
[1741035380871,0.34763262,575.32,574.1,1.29429039]
[1741035380872,0.34763262,575.32,574.11,0.32014367]
[1741035381062,0.34763262,575.32,574.12,0.32014367]
[1741035381267,0.34763262,575.32,574.13,0.32014367]
[1741035381465,0.34763262,575.32,574.35,1.29429039]
[1741035383566,0.34763262,575.32,574.36,1.325]
[1741035387171,0.34763262,575.32,574.37,0.31993687]
[1741035389070,0.34763262,575.32,574.49,1.29429039]
[1741035389566,0.34763262,575.32,574.5,0.107]
[1741035392072,0.34763262,575.32,574.51,1.545]
[1741035394683,0.34763262,575.32,574.52,1.29429039]
[1741035396875,0.34763262,575.32,574.57,1.29429039]
[1741035398973,0.34763262,575.32,574.58,0.31981256]
[1741035400182,0.34763262,575.32,574.59,0.31981256]
[1741035400481,0.34763262,575.32,574.6,0.31981256]
[1741035400677,0.34763262,575.32,574.61,1.512]
[1741035414794,0.34763262,575.32,574.62,0.107]
[1741035420199,0.34763262,575.32,574.63,1.162]
[1741035427903,0.34763262,575.32,574.64,1.131]
[1741035435906,0.34763262,575.32,574.65,0.107]
[1741035441313,0.34763262,575.32,574.65,2.161]
[1741035445713,0.34763262,575.32,574.65,3.503]
[1741035445919,0.34763262,575.32,574.66,0.31981094]
[1741035446714,0.34763262,575.32,574.65,3.503]
[1741035451324,0.34763262,575.32,574.66,0.31971342]
[1741035454122,0.34763262,575.32,574.73,1.29429039]
[1741035454319,0.34763262,575.32,574.74,0.31971342]
[1741035455324,0.34763262,575.32,574.73,1.29429039]
[1741035455526,0.34763262,575.32,574.74,0.31969755]
[1741035456125,0.34763262,575.32,574.73,1.29429039]
[1741035456619,0.34763262,575.32,574.74,0.31969291]
[1741035456821,0.34763262,575.32,574.67,1.29429039]
[1741035457022,0.34763262,575.32,574.68,0.31970356]
[1741035460129,0.34763262,575.32,574.66,1.81465806]
[1741035460325,0.34763262,575.32,574.69,0.31968772]
[1741035460525,0.34763262,575.32,574.7,0.31968772]
[1741035460726,0.34763262,575.32,574.67,0.31968772]
[1741035461027,0.34763262,575.32,574.68,0.31968772]
[1741035463229,0.34763262,575.32,574.68,0.42668772]
[1741035463527,0.34763262,575.32,574.69,0.31968772]
[1741035466631,0.34763262,575.32,574.68,1.92161863]
[1741035466930,0.34763262,575.32,574.69,0.31965412]
[1741035469929,0.34763262,575.32,574.7,0.31963614]
[1741035470135,0.34763262,575.32,574.71,0.31963614]
[1741035470336,0.34763262,575.32,574.69,0.31963614]
[1741035470536,0.34763262,575.32,574.7,0.31963614]
[1741035470837,0.34763262,575.32,574.71,0.31963614]
[1741035471037,0.34763262,575.32,574.72,0.31963614]
[1741035471337,1.27427585,576.85,574.73,0.31963614]
[1741035471533,0.34677069,576.75,574.74,1.29429039]
[1741035471737,0.34677069,576.75,574.75,0.31963614]
[1741035472439,1.81448459,576.74,574.75,0.31963614]
[1741035472638,0.34678873,576.72,574.75,0.31963614]
[1741035473433,0.34678873,576.72,574.75,1.61392653]
[1741035473636,0.34678873,576.72,574.76,0.31963614]
[1741035474540,1.81446094,576.71,574.76,0.31963614]
[1741035474840,1.81446094,576.71,574.77,0.31964312]
[1741035475040,1.81446094,576.71,574.78,0.31964312]
[1741035475240,1.81446094,576.71,574.79,0.31964312]
[1741035475541,4.39336878,576.71,574.8,0.31964312]
[1741035475840,0.89286096,576.7,574.81,0.31964312]
[1741035476141,0.89286096,576.7,574.82,0.31964312]
[1741035476339,0.89286096,576.7,574.76,0.31964312]
[1741035476540,0.89286096,576.7,574.84,1.29429039]
[1741035476742,0.34681279,576.68,574.85,0.31964312]
[1741035478536,0.34681279,576.68,574.84,1.29429039]
[1741035479242,0.34681279,576.68,574.74,1.646]
[1741035479243,1.27427585,576.55,574.9,1.29429039]
[1741035479442,0.34690302,576.53,574.9,1.29429039]
[1741035480442,1.81470537,576.52,574.9,1.29429039]
[1741035480638,0.34692107,576.5,574.9,1.29429039]
[1741035482648,0.34692107,576.5,574.82,1.29429039]
[1741035484348,0.34692107,576.5,574.83,0.107]
[1741035485148,1.27427585,576.08,574.83,0.107]
[1741035485450,0.34718605,576.06,574.83,0.107]
[1741035487349,0.34718605,576.06,574.84,1.259]
[1741035489452,0.34718605,576.06,574.85,0.31969899]
[1741035492459,0.34718605,576.06,574.93,1.29429039]
[1741035492658,0.34718605,576.06,574.94,0.31969899]
[1741035495159,0.34718605,576.06,574.95,0.31964179]
[1741035495356,0.34718605,576.06,574.96,0.31964179]
[1741035495553,0.34718605,576.06,574.93,1.29429039]
[1741035495854,0.34718605,576.06,574.93,2.58529039]
[1741035496061,0.34718605,576.06,575.03,1.29429039]
[1741035499463,0.34718605,576.06,574.93,1.291]
[1741035506268,0.34718605,576.06,574.94,0.31962356]
[1741035506866,0.34718605,576.06,574.93,1.291]
[1741035508566,0.34718605,576.06,574.97,1.29429039]
[1741035509561,0.34718605,576.06,574.98,1.232]
[1741035511563,0.34718605,576.06,574.99,0.107]
[1741035512069,0.34718605,576.06,575.0,1.925]
[1741035515069,1.69516653,576.05,575.0,1.925]
[1741035515269,0.34720413,576.03,575.0,1.925]
[1741035521477,1.81529701,576.02,575.0,1.925]
[1741035521678,0.34722222,576.0,575.0,1.925]
[1741035523278,1.81511553,575.99,575.0,1.925]
[1741035523476,0.3472403,575.97,575.0,1.925]
[1741035528581,1.81541538,575.96,575.0,1.925]
[1741035528780,0.34725839,575.94,575.0,1.925]
[1741035531179,0.34725839,575.94,574.28,1.29429039]
[1741035531379,0.34725839,575.94,574.61,1.81513131]
[1741035531680,0.34725839,575.94,574.62,0.31978248]
[1741035531882,0.34725839,575.94,574.29,0.31978248]
[1741035532084,0.34725839,575.94,574.3,0.31978248]
[1741035532384,0.34725839,575.94,574.31,0.31978248]
[1741035532784,0.34725839,575.94,574.32,0.31978248]
[1741035533078,0.34725839,575.94,574.33,0.31978248]
[1741035533279,0.34725839,575.94,574.34,0.31978248]
[1741035533478,0.34725839,575.94,574.35,0.31978248]
[1741035533686,0.34725839,575.94,574.43,1.29429039]
[1741035533884,0.34725839,575.94,574.44,0.31978248]
[1741035534285,0.34725839,575.94,574.45,1.179]
[1741035534486,0.34725839,575.94,574.46,0.31978248]
[1741035536286,0.34725839,575.94,574.47,1.528]
[1741035536480,0.34725839,575.94,574.48,0.31978248]
[1741035536883,0.34725839,575.94,574.5,1.29429039]
[1741035537083,0.34725839,575.94,574.51,0.31978248]
[1741035539189,0.34725839,575.94,574.56,1.29429039]
[1741035539389,0.34725839,575.94,574.57,0.31978248]
[1741035542187,0.34725839,575.94,574.56,1.29429039]
[1741035542383,0.34725839,575.94,574.62,1.29429039]
[1741035546390,0.34725839,575.94,574.52,1.81564428]
[1741035546585,0.34725839,575.94,574.53,0.31972709]
[1741035548890,0.34725839,575.94,574.54,0.31973517]
[1741035549095,0.34725839,575.94,574.55,0.31973517]
[1741035549293,0.34725839,575.94,574.56,0.31973517]
[1741035549492,0.34725839,575.94,574.77,1.29429039]
[1741035550996,0.34725839,575.94,574.77,2.65029039]
[1741035552291,1.81581797,575.93,574.77,2.65029039]
[1741035552895,1.81581797,575.93,574.77,1.356]
[1741035553888,0.34727648,575.91,574.77,1.356]
[1741035557502,1.81609435,575.9,574.77,1.356]
[1741035557703,0.34729457,575.88,574.77,1.356]
[1741035558595,0.34729457,575.88,574.77,2.563]
[1741035559896,0.34729457,575.88,574.77,2.67]
[1741035564607,1.81638663,575.87,574.77,2.67]
[1741035564803,0.34731266,575.85,574.77,2.67]
[1741035567503,1.81648934,575.84,574.77,2.67]
[1741035569605,0.34733076,575.82,574.77,2.67]
[1741035570417,1.81637873,575.81,574.77,2.67]
[1741035570614,0.34734885,575.79,574.77,2.67]
[1741035573418,1.81665528,575.78,574.77,2.67]
[1741035573615,0.34736695,575.76,574.77,2.67]
[1741035576325,1.81671061,575.75,574.77,2.67]
[1741035576525,0.34738505,575.73,574.77,2.67]
[1741035579425,1.81671851,575.72,574.77,2.67]
[1741035579725,0.34740316,575.7,574.77,2.67]
[1741035582325,1.81648934,575.69,574.77,2.67]
[1741035582529,0.34742126,575.67,574.77,2.67]
[1741035583531,0.34742126,575.67,574.77,4.24]
[1741035585429,1.81633922,575.66,574.77,4.24]
[1741035585833,0.34743937,575.64,574.77,4.24]
[1741035597446,1.81611805,575.63,574.77,4.24]
[1741035597647,0.34745747,575.61,574.77,4.24]
[1741035600355,1.81648144,575.6,574.77,4.24]
[1741035600551,0.34747558,575.58,574.77,4.24]
[1741035603456,1.81690821,575.57,574.77,4.24]
[1741035605562,0.34748766,575.56,574.77,4.24]
[1741035606364,1.81667109,575.55,574.77,4.24]
[1741035609167,0.34748766,575.56,574.77,4.24]
[1741035609558,1.81692402,575.54,574.77,4.24]
[1741035612068,0.34748766,575.56,574.77,4.24]
[1741035612370,1.81716912,575.53,574.77,4.24]
[1741035615071,0.34751181,575.52,574.77,4.24]
[1741035618269,2.92926966,575.52,574.77,4.24]
[1741035619880,2.92926966,575.52,574.77,2.884]
[1741035620077,2.92926966,575.52,574.77,1.677]
[1741035621580,2.92926966,575.52,574.77,1.57]
[1741035622680,2.9269484,575.52,574.77,1.57]
[1741035623480,2.9269484,575.52,574.77,1.257]
[1741035628783,2.92294959,575.52,574.77,1.257]
[1741035630383,1.81702679,575.51,574.77,1.257]
[1741035631187,0.34752389,575.5,574.77,1.257]
[1741035633390,1.81720865,575.49,574.77,1.257]
[1741035633585,0.34753596,575.48,574.77,1.257]
[1741035636591,1.81681335,575.47,574.77,1.257]
[1741035636790,0.34754804,575.46,574.77,1.257]
[1741035639489,1.81692402,575.45,574.77,1.257]
[1741035641795,0.34756012,575.44,574.77,1.257]
[1741035646390,0.34756012,575.44,574.39,1.29429039]
[1741035646596,0.34756012,575.44,574.4,0.31986923]
[1741035648296,0.34756012,575.44,574.41,0.31986923]
[1741035648496,0.34756012,575.44,574.42,0.31986923]
[1741035648697,0.34756012,575.44,574.4,0.31986923]
[1741035648892,0.34756012,575.44,574.41,0.31986923]
[1741035649092,0.34756012,575.44,574.42,0.31986923]
[1741035649296,0.34756012,575.44,574.43,0.31986923]
[1741035649494,0.34756012,575.44,574.44,0.31986923]
[1741035649698,0.34756012,575.44,574.56,1.29429039]
[1741035649893,0.34756012,575.44,574.57,0.31986923]
[1741035651799,0.34756012,575.44,574.58,0.31986923]
[1741035652000,0.34756012,575.44,574.59,0.31986923]
[1741035652302,0.34756012,575.44,574.6,0.31986923]
[1741035652499,0.34756012,575.44,574.57,0.31986923]
[1741035652701,0.34756012,575.44,574.58,0.31986923]
[1741035653005,0.34756012,575.44,574.59,0.31986923]
[1741035653202,0.34756012,575.44,574.6,0.31986923]
[1741035653405,0.34756012,575.44,574.61,0.31986923]
[1741035653598,0.34756012,575.44,574.62,0.31986923]
[1741035653898,0.34756012,575.44,574.63,0.31986923]
[1741035654104,0.34756012,575.44,574.64,0.31986923]
[1741035654403,0.34756012,575.44,574.65,0.31986923]
[1741035654805,0.34756012,575.44,574.66,0.31986923]
[1741035655005,0.34756012,575.44,574.67,0.31986923]
[1741035655307,0.34756012,575.44,574.68,0.31977234]
[1741035655500,0.34756012,575.44,574.47,1.29429039]
[1741035655501,0.34756012,575.44,574.48,0.31977234]
[1741035655700,0.34756012,575.44,574.49,0.31978263]
[1741035655905,0.34756012,575.44,574.5,0.31978263]
[1741035656201,0.34756012,575.44,574.47,1.29429039]
[1741035656202,0.34756012,575.44,574.51,0.31978263]
[1741035656507,0.34756012,575.44,574.52,0.31978263]
[1741035656805,0.34756012,575.44,574.53,0.31978263]
[1741035657005,0.34756012,575.44,574.48,0.31978263]
[1741035657205,0.34756012,575.44,574.49,0.31978263]
[1741035657401,0.34756012,575.44,574.48,0.31978263]
[1741035657607,0.34756012,575.44,574.49,0.31978263]
[1741035657802,0.34756012,575.44,574.48,0.31978263]
[1741035658306,0.34756012,575.44,574.44,0.31978263]
[1741035658607,0.34756012,575.44,574.45,0.31978263]
[1741035658806,0.34756012,575.44,574.43,1.421]
[1741035658807,0.34756012,575.44,574.44,0.31978263]
[1741035659004,0.34756012,575.44,574.45,0.31978263]
[1741035659202,0.34756012,575.44,574.44,0.31978263]
[1741035659408,0.34756012,575.44,574.45,0.31978263]
[1741035659607,0.34756012,575.44,574.44,0.31978263]
[1741035659807,0.34756012,575.44,574.45,0.31978263]
[1741035660004,0.34756012,575.44,574.44,0.31978263]
[1741035660204,0.34756012,575.44,574.45,0.31978263]
[1741035660412,0.34756012,575.44,574.44,0.31978263]
[1741035660610,0.34756012,575.44,574.45,0.31978263]
[1741035660810,0.34756012,575.44,574.44,0.31978263]
[1741035662410,2.55499129,576.72,574.45,0.31993762]
[1741035662714,2.55380372,576.71,574.43,1.421]
[1741035662915,2.55380372,576.7,574.43,1.421]
[1741035663208,2.55380372,576.69,574.43,1.421]
[1741035663413,2.55380372,576.68,574.43,1.421]
[1741035663611,2.55380372,576.67,574.43,1.421]
[1741035663809,2.55380372,576.66,574.43,1.421]
[1741035664110,2.55380372,576.65,574.43,1.421]
[1741035664311,2.55380372,576.64,574.43,1.421]
[1741035664515,2.55380372,576.63,574.43,1.421]
[1741035664717,3.82807957,576.62,574.43,1.421]
[1741035664916,2.55380372,576.61,574.43,1.421]
[1741035665117,2.55380372,576.6,574.43,1.421]
[1741035665315,2.55380372,576.59,574.43,1.421]
[1741035665616,2.55380372,576.58,574.43,1.421]
[1741035665815,2.55380372,576.57,574.43,1.421]
[1741035666015,2.55380372,576.56,574.43,1.421]
[1741035666219,2.55380372,576.55,574.43,1.421]
[1741035666415,2.55380372,576.58,574.43,1.421]
[1741035666616,2.55380372,576.58,574.44,0.31992999]
[1741035667016,1.67069272,576.57,574.43,1.421]
[1741035667213,2.55380372,576.56,574.43,1.421]
[1741035667411,1.67069272,576.55,574.43,1.421]
[1741035667714,0.883111,576.58,574.44,0.31990707]
[1741035667912,1.81600748,576.59,574.44,0.31990707]
[1741035668112,2.69911848,576.59,574.44,0.31990707]
[1741035668315,1.81600748,576.59,574.44,0.31990707]
[1741035672020,1.81600748,576.59,574.43,1.421]
[1741035672219,0.883111,576.61,574.43,1.421]
[1741035672522,1.8155022,576.58,574.44,0.3198336]
[1741035673120,1.8155022,576.58,574.28,0.3198336]
[1741035673423,1.8155022,576.58,574.29,0.3198336]
[1741035673615,1.8155022,576.58,574.28,0.3198336]
[1741035675523,1.8155022,576.58,574.29,0.3198336]
[1741035675720,1.8155022,576.58,574.3,0.3198336]
[1741035675921,1.8155022,576.58,574.31,0.3198336]
[1741035676125,4.37102385,576.58,574.32,0.3198336]
[1741035676325,2.55552165,576.57,574.33,0.3198336]
[1741035676525,0.88391787,576.57,574.34,0.3198336]
[1741035676725,1.8155022,576.58,574.35,0.3198336]
[1741035676920,1.8155022,576.58,574.36,0.3198336]
[1741035677127,1.8155022,576.58,574.37,0.3198336]